bitfinex/quotes_SOLUSD_20220211
["timestamp","ask_amount","ask_price","bid_price","bid_amount"]
[1644562686290,39.20533329,105.05,105.0,14.2895]
[1644562686690,37.85464895,105.05,105.0,14.2895]
[1644562687791,37.85464895,105.05,105.01,51.15354657]
[1644562693294,23.8953,105.06,105.01,51.15354657]
[1644562693496,23.8953,105.06,105.01,75.19774657]
[1644562693896,14.2893,105.07,105.01,84.56174657]
[1644562694195,19.0473,105.09,105.01,91.96618649]
[1644562694399,40.08296306,105.08,105.01,111.86618649]
[1644562695798,14.2857,105.1,105.01,111.86618649]
[1644562695997,4.759,105.11,105.01,169.24618649]
[1644562696198,29.7266,105.12,105.01,178.55913978]
[1644562696401,29.7266,105.12,105.01,201.08633978]
[1644562696801,36.08594096,105.11,105.01,201.08633978]
[1644562698803,36.08594096,105.11,105.01,191.72233978]
[1644562699004,4.759,105.1,105.01,191.72233978]
[1644562699203,4.759,105.1,105.01,186.96233978]
[1644562699404,29.7266,105.12,105.02,4.759]
[1644562699607,24.9676,105.12,105.05,14.2807]
[1644562699804,24.9676,105.12,105.05,61.9501]
[1644562700206,46.26276022,105.11,105.06,37.60434261]
[1644562700604,46.26276022,105.11,105.07,14.2814]
[1644562701406,4.757,105.1,105.07,14.2814]
[1644562701704,4.757,105.1,105.06,14.2838]
[1644562702306,47.0115387,105.09,105.06,14.2838]
[1644562703306,47.0115387,105.09,105.05,37.0464]
[1644562703709,47.0115387,105.09,105.05,14.285]
[1644562705911,51.7695387,105.09,105.05,14.285]
[1644562708312,47.0115387,105.09,105.05,14.285]
[1644562712447,47.0115387,105.09,105.05,61.92113016]
[1644562713248,1.34569877,105.11,105.05,61.92113016]
[1644562713448,6.10369877,105.11,105.05,86.17413016]
[1644562714247,43.7997796,105.1,105.05,86.17413016]
[1644562714947,45.14547837,105.1,105.05,86.17413016]
[1644562715148,43.7997796,105.1,105.05,86.17413016]
[1644562716551,43.7997796,105.1,105.05,38.538]
[1644562716850,45.14547837,105.1,105.05,38.538]
[1644562717052,59.43087837,105.1,105.05,14.285]
[1644562717252,4.758,105.09,105.04,14.2867]
[1644562717452,4.758,105.09,105.02,28.8725]
[1644562717651,44.5035988,105.08,105.02,75.87915289]
[1644562718452,58.7915988,105.08,105.03,14.288]
[1644562718654,4.759,105.07,105.03,14.288]
[1644562718851,4.759,105.07,105.02,22.8725]
[1644562719450,42.87035805,105.06,105.02,22.8725]
[1644562719651,42.87035805,105.06,105.02,25.26693992]
[1644562719853,26.22709877,105.09,105.03,13.9]
[1644562720751,39.47058477,105.08,105.03,14.2871]
[1644562720953,45.57528354,105.08,105.03,14.2871]
[1644562721654,45.57528354,105.08,105.03,51.80516681]
[1644562721854,45.57528354,105.08,105.03,14.2871]
[1644562722256,59.86328354,105.08,105.03,14.2871]
[1644562723054,59.86328354,105.08,105.02,39.55603992]
[1644562723859,1.34569877,105.07,105.02,39.55603992]
[1644562724058,37.54774862,105.06,105.02,39.55603992]
[1644562728973,37.54774862,105.06,105.02,88.33805587]
[1644562729864,37.54774862,105.06,105.02,53.45603992]
[1644562730064,37.54774862,105.06,105.02,39.55603992]
[1644562730966,37.54774862,105.06,105.02,53.45603992]
[1644562731367,37.54774862,105.06,105.02,51.0616]
[1644562732569,37.54774862,105.06,105.02,37.1616]
[1644562733067,51.83754862,105.06,105.02,14.2891]
[1644562733267,51.83754862,105.06,105.01,36.8178]
[1644562733468,57.94324739,105.06,105.01,36.8178]
[1644562733968,56.59754862,105.06,105.01,36.8178]
[1644562734172,57.94324739,105.06,105.01,36.8178]
[1644562735597,53.18324739,105.06,105.01,36.8178]
[1644562735797,53.18324739,105.06,105.01,39.21223992]
[1644562735997,51.83754862,105.06,105.01,39.21223992]
[1644562740604,51.83754862,105.06,105.01,36.8178]
[1644562740806,19.0513,105.05,105.01,36.8178]
[1644562741605,35.61691531,105.04,105.01,36.8178]
[1644562742208,35.61691531,105.04,105.02,6.06439994]
[1644562742507,35.61691531,105.04,105.01,14.2906]
[1644562744411,35.61691531,105.04,105.02,6.06439994]
[1644562745414,35.61691531,105.04,105.02,3.03219997]
[1644562745813,35.61691531,105.04,105.01,14.2906]
[1644562746611,35.61691531,105.04,105.02,6.06439994]
[1644562747013,35.61691531,105.04,105.01,14.2906]
[1644562749413,35.61691531,105.04,105.01,16.68503992]
[1644562749813,35.61691531,105.04,105.02,17.32209997]
[1644562750813,35.61691531,105.04,105.02,14.2899]
[1644562751615,35.61691531,105.04,105.01,14.291]
[1644562752518,35.61691531,105.04,105.02,3.03219997]
[1644562754019,35.61691531,105.04,105.02,17.32199997]
[1644562755920,35.61691531,105.04,105.03,3.03219997]
[1644562756121,35.61691531,105.04,105.02,17.32199997]
[1644562756321,35.61691531,105.04,105.02,14.2898]
[1644562757128,35.61691531,105.04,105.03,6.06439994]
[1644562757330,35.61691531,105.04,105.02,14.2898]
[1644562760531,35.61691531,105.04,105.03,6.06439994]
[1644562760730,35.61691531,105.04,105.02,14.2898]
[1644562761732,35.61691531,105.04,105.01,14.2907]
[1644562763148,35.61691531,105.04,105.02,6.06439994]
[1644562765251,35.61691531,105.04,105.02,3.03219997]
[1644562766252,35.61691531,105.04,105.02,17.32209997]
[1644562767452,35.61691531,105.04,105.03,3.03219997]
[1644562773259,35.61691531,105.04,105.02,17.32209997]
[1644562773459,35.61691531,105.04,105.02,14.2899]
[1644562773660,35.61691531,105.04,105.01,14.2907]
[1644562774564,35.61691531,105.04,105.0,0.024]
[1644562774762,1.34569877,105.03,105.0,0.024]
[1644562774960,6.10569877,105.03,104.98,0.024]
[1644562775159,6.10569877,105.03,104.97,62.5301]
[1644562775561,37.81372099,105.02,104.97,62.5301]
[1644562775761,37.81372099,105.02,104.98,38.51134651]
[1644562775963,52.10892099,105.02,104.97,76.4301]
[1644562778063,56.86992099,105.02,104.97,76.4301]
[1644562779463,52.10892099,105.02,104.97,76.4301]
[1644562780367,37.81372099,105.02,104.97,76.4301]
[1644562783369,52.10872099,105.02,104.97,76.4301]
[1644562783773,4.761,105.01,104.97,76.4301]
[1644562783973,45.56139151,105.0,104.97,76.4301]
[1644562784170,3.03219997,104.99,104.97,52.6728]
[1644562784376,45.56139151,105.0,104.98,3.03219997]
[1644562785473,19.056,105.02,104.98,3.03219997]
[1644562785673,19.056,105.02,104.98,17.32679997]
[1644562786175,4.761,105.02,104.98,17.32679997]
[1644562786576,37.59996028,105.01,104.98,17.32679997]
[1644562788296,37.8066,105.03,104.98,17.32679997]
[1644562788497,37.8066,105.03,104.98,17.35079997]
[1644562789396,35.08024422,105.02,104.98,17.35079997]
[1644562789600,35.08024422,105.02,104.98,17.32679997]
[1644562798411,49.37524422,105.02,104.98,17.32679997]
[1644562799413,49.37524422,105.02,104.98,3.03219997]
[1644562800014,42.9234267,105.0,104.98,3.03219997]
[1644562800415,3.03219997,104.99,104.98,3.03219997]
[1644562800617,42.9234267,105.0,104.98,3.03219997]
[1644562803417,3.03219997,104.99,104.98,3.03219997]
[1644562803617,3.03219997,104.99,104.97,38.773]
[1644562803818,42.9234267,105.0,104.98,3.03219997]
[1644562804419,4.761,104.99,104.94,19.0287322]
[1644562804628,12.662,105.0,104.92,1.3321987]
[1644562804819,24.9262,104.99,104.92,1.3321987]
[1644562805021,4.763,104.98,104.92,15.6329987]
[1644562805219,6.10869877,104.98,104.89,1.3321987]
[1644562805420,36.70886357,104.97,104.9,47.9079225]
[1644562805622,4.764,104.96,104.9,47.9079225]
[1644562805822,4.765,104.98,104.9,47.9079225]
[1644562806023,22.5748,104.97,104.9,62.2102225]
[1644562806222,4.765,104.98,104.9,64.85466242]
[1644562806424,4.765,104.98,104.9,64.60466242]
[1644562806847,35.32530077,104.98,104.9,64.60466242]
[1644562807025,49.62650077,104.98,104.9,62.2102225]
[1644562807225,24.1983,104.97,104.9,62.2102225]
[1644562807423,4.764,104.96,104.9,62.2102225]
[1644562809423,12.48402145,104.96,104.9,62.2102225]
[1644562809624,12.48402145,104.96,104.9,47.9079225]
[1644562809825,4.764,104.96,104.9,47.9079225]
[1644562810425,19.0682,104.96,104.9,47.9079225]
[1644562811125,2.00407725,104.95,104.9,47.9079225]
[1644562811325,2.00407725,104.95,104.89,38.6305]
[1644562811529,4.765,104.94,104.89,38.6305]
[1644562811727,4.765,104.94,104.89,24.3266]
[1644562812327,4.765,104.96,104.89,24.3266]
[1644562812726,19.0695,104.96,104.89,24.3266]
[1644562813026,56.44596538,104.96,104.9,45.74997433]
[1644562813626,56.44596538,104.96,104.89,24.3266]
[1644562815128,56.44596538,104.96,104.88,14.3054]
[1644562815328,56.44596538,104.96,104.87,39.2362]
[1644562815529,56.44596538,104.96,104.85,22.5551]
[1644562815728,56.44596538,104.96,104.85,28.5551]
[1644562816130,56.44596538,104.96,104.86,39.83254322]
[1644562816329,56.44596538,104.96,104.87,23.3118]
[1644562817730,56.44596538,104.96,104.88,38.50197239]
[1644562818531,56.44596538,104.96,104.87,23.3118]
[1644562818732,56.44596538,104.96,104.87,29.3118]
[1644562819531,56.44596538,104.96,104.87,71.48971903]
[1644562819831,56.44596538,104.96,104.87,29.3118]
[1644562820330,56.44596538,104.96,104.88,0.024]
[1644562826638,19.0695,104.96,104.88,37.1356]
[1644562826940,4.765,104.96,104.89,22.8611]
[1644562827143,4.765,104.96,104.9,0.024]
[1644562827541,4.765,104.96,104.9,34.26907512]
[1644562827742,4.765,104.96,104.9,48.57167512]
[1644562829770,4.765,104.96,104.9,14.3266]
[1644562830371,76.64843628,104.97,104.9,14.3266]
[1644562830575,38.5016,104.97,104.9,14.5766]
[1644562830773,38.5016,104.97,104.91,23.1049]
[1644562830974,38.5016,104.97,104.91,37.4071]
[1644562831473,38.5016,104.97,104.92,43.88781654]
[1644562831674,38.5016,104.97,104.92,43.91181654]
[1644562832074,24.1983,104.97,104.92,43.91181654]
[1644562833377,24.1983,104.97,104.92,57.81181654]
[1644562833576,24.1983,104.97,104.92,72.11271654]
[1644562834275,28.9623,104.97,104.92,72.11271654]
[1644562835376,24.1983,104.97,104.92,72.11271654]
[1644562838178,44.37109877,104.99,104.92,72.11271654]
[1644562838383,1.34569877,104.99,104.93,84.65293992]
[1644562838580,1.34569877,105.0,104.94,14.2967]
[1644562838781,1.34569877,105.01,104.95,24.8785]
[1644562838982,4.763,105.0,104.95,27.24893992]
[1644562839180,22.9684,105.03,104.96,36.79885532]
[1644562839181,1.34569877,105.02,104.96,36.79885532]
[1644562839384,1.34569877,105.02,104.97,23.8065]
[1644562839581,1.34569877,105.02,104.97,38.1015]
[1644562839782,72.07024372,105.03,104.97,38.1015]
[1644562840987,4.761,105.02,104.97,38.1015]
[1644562842988,4.761,105.02,104.98,41.8853462]
[1644562843187,43.36989877,105.03,104.98,41.8853462]
[1644562843590,37.2632,105.03,104.98,41.8853462]
[1644562844188,37.2632,105.03,104.98,56.1794462]
[1644562845893,4.761,105.02,104.98,56.1794462]
[1644562846096,4.761,105.02,104.98,14.2941]
[1644562847094,37.2632,105.03,104.98,53.20054531]
[1644562847895,22.9684,105.03,104.98,53.20054531]
[1644562853121,22.9684,105.03,104.98,55.59498523]
[1644562854921,22.9684,105.03,104.98,53.20054531]
[1644562856022,15.63779877,105.05,104.98,53.20054531]
[1644562856224,1.34569877,105.05,104.99,24.7141]
[1644562856426,1.34569877,105.06,105.0,14.2901]
[1644562856631,1.34569877,105.06,105.01,24.7141]
[1644562856826,47.94319877,105.07,105.01,24.7141]
[1644562857127,47.94319877,105.07,105.02,42.70533998]
[1644562857325,47.94319877,105.07,105.02,50.28733998]
[1644562857727,62.23329877,105.07,105.02,64.57603998]
[1644562859726,24.53889877,105.07,105.02,64.57603998]
[1644562860135,23.1932,105.07,105.02,64.57603998]
[1644562860330,6.10669877,105.08,105.02,64.57603998]
[1644562860630,6.10469877,105.09,105.02,81.1204799]
[1644562860829,1.34569877,105.09,105.02,87.1204799]
[1644562861431,1.34569877,105.09,105.03,24.8391]
[1644562861636,1.34569877,105.09,105.04,62.19740898]
[1644562862432,29.97169877,105.1,105.04,62.19740898]
[1644562862633,25.21369877,105.1,105.04,62.19740898]
[1644562862833,1.34569877,105.09,105.04,62.19740898]
[1644562863332,25.21369877,105.1,105.04,62.19740898]
[1644562867236,29.91315007,105.09,105.04,14.2842]
[1644562867436,4.758,105.08,105.03,39.1268]
[1644562867637,6.10369877,105.08,105.03,39.1268]
[1644562867937,1.34569877,105.07,104.99,22.9603]
[1644562868137,15.81856969,105.06,105.0,40.32538312]
[1644562868338,14.2922,105.05,105.0,40.32538312]
[1644562868537,4.76,105.04,104.99,20.2922]
[1644562869343,4.76,105.04,104.99,14.2922]
[1644562869540,14.2922,105.05,104.99,14.2922]
[1644562869839,15.63619877,105.06,104.99,14.2922]
[1644562870039,15.63619877,105.06,104.99,36.8968]
[1644562870240,15.63619877,105.06,104.99,50.7968]
[1644562870241,14.2905,105.06,104.99,50.7968]
[1644562870442,15.63619877,105.06,105.0,42.98457897]
[1644562870641,4.76,105.05,105.01,14.2902]
[1644562873246,1.34569877,105.06,105.01,16.92386791]
[1644562873445,4.76,105.07,105.02,48.41170988]
[1644562873645,24.06489877,105.08,105.03,14.2866]
[1644562873846,1.34569877,105.08,105.03,14.2866]
[1644562874046,1.34569877,105.09,105.03,14.2866]
[1644562874245,1.34569877,105.09,105.03,16.67026791]
[1644562874648,1.34569877,105.09,105.04,37.0420874]
[1644562874847,1.34569877,105.09,105.05,14.285]
[1644562875051,1.34569877,105.09,105.06,45.90725346]
[1644562878952,1.34569877,105.09,105.05,14.285]
[1644562880253,6.10369877,105.09,105.05,14.285]
[1644562882378,20.39019877,105.09,105.05,14.285]
[1644562882580,1.34569877,105.08,105.01,76.5137]
[1644562882778,1.34569877,105.07,105.01,70.5137]
[1644562883278,1.34569877,105.07,105.02,35.36740354]
[1644562883777,15.63489877,105.07,105.03,14.2883]
[1644562884681,12.63489877,105.07,105.03,14.2883]
[1644562884882,12.63489877,105.07,105.02,14.2895]
[1644562885080,17.39489877,105.07,105.02,14.2895]
[1644562885279,32.39341061,105.06,105.02,14.2895]
[1644562885480,46.68391061,105.06,105.02,14.2895]
[1644562885888,46.68391061,105.06,105.01,22.8903]
[1644562886081,4.76,105.05,105.01,22.8903]
[1644562886281,4.76,105.05,105.01,14.2908]
[1644562887185,5.88691161,105.04,105.01,14.2908]
[1644562887683,14.2905,105.06,105.01,14.2908]
[1644562888684,35.84277074,105.05,105.01,14.2908]
[1644562888886,54.89477074,105.05,105.01,14.2908]
[1644562889085,50.13477074,105.05,105.01,14.2908]
[1644562889688,14.292,105.05,105.01,14.2908]
[1644562891087,14.292,105.05,104.99,24.0781]
[1644562891288,4.76,105.04,105.0,14.2921]
[1644562891689,33.24522097,105.04,105.0,14.2921]
[1644562891886,42.77782097,105.04,105.0,14.2921]
[1644562894390,4.76,105.03,105.0,14.2921]
[1644562894592,3.03219997,105.02,104.99,14.2933]
[1644562894794,6.06439994,105.02,104.99,14.2933]
[1644562894991,6.06439994,105.02,104.97,23.4145]
[1644562895390,9.79510125,105.01,104.97,23.4145]
[1644562895592,9.79510125,105.01,104.98,14.2948]
[1644562895891,9.79510125,105.01,104.97,23.4145]
[1644562896092,14.55610125,105.01,104.96,0.024]
[1644562897098,28.85310125,105.01,104.96,0.024]
[1644562897395,35.99310125,105.01,104.96,0.024]
[1644562902197,28.85310125,105.01,104.96,0.024]
[1644562903299,28.85310125,105.01,104.98,1.2980182]
[1644562903698,6.06439994,105.0,104.98,1.2980182]
[1644562903898,4.761,104.99,104.98,1.2980182]
[1644562904197,25.12519994,105.0,104.98,1.2980182]
[1644562904399,6.06439994,105.0,104.98,1.2980182]
[1644562904599,3.03219997,105.0,104.98,1.2980182]
[1644562905198,3.03219997,104.99,104.98,1.2980182]
[1644562907097,37.3853,105.02,104.98,1.2980182]
[1644562907306,42.1463,105.02,104.98,1.2980182]
[1644562907503,23.0883,105.02,104.98,1.2980182]
[1644562907900,27.88215588,105.02,104.98,1.2980182]
[1644562908301,29.6212,105.05,104.98,1.2980182]
[1644562908702,43.9132,105.05,104.98,15.5918182]
[1644562909303,78.09441304,105.05,104.98,57.75004686]
[1644562909505,78.09441304,105.05,104.98,15.5918182]
[1644562911904,73.33341304,105.05,104.98,15.5918182]
[1644562913305,4.761,105.04,104.98,15.5918182]
[1644562914107,4.09910918,105.03,104.98,15.5918182]
[1644562915206,4.761,105.02,104.98,1.2980182]
[1644562915632,34.18121304,105.01,104.98,1.2980182]
[1644562916609,4.761,105.01,104.98,1.2980182]
[1644562917709,31.91957675,105.01,104.98,1.2980182]
[1644562917909,27.15857675,105.01,104.98,1.2980182]
[1644562920015,14.2964,105.02,104.98,1.2980182]
[1644562921210,19.0574,105.02,104.98,1.2980182]
[1644562922210,4.20868209,105.01,104.98,1.2980182]
[1644562922610,6.06439994,105.0,104.98,1.2980182]
[1644562922910,14.2945,105.03,104.98,15.5922182]
[1644562923133,24.8602,105.05,104.98,15.5922182]
[1644562923710,35.07539284,105.04,104.98,15.5922182]
[1644562923912,3.20492938,105.02,104.98,15.5922182]
[1644562924410,4.761,105.04,104.98,15.5922182]
[1644562924710,19.0539,105.04,104.98,15.5922182]
[1644562925311,36.00259097,105.03,104.98,15.5922182]
[1644562931249,55.05769097,105.03,104.98,15.5922182]
[1644562931446,50.29669097,105.03,104.98,15.5922182]
[1644562936445,50.29669097,105.03,104.98,1.2980182]
[1644562936646,4.761,105.02,104.98,1.2980182]
[1644562936843,14.2971,105.01,104.98,1.2980182]
[1644562937045,4.761,105.0,104.98,1.2980182]
[1644562937242,6.06439994,104.99,104.98,1.2980182]
[1644562937845,20.36429994,104.99,104.98,1.2980182]
[1644562938642,6.06439994,104.99,104.98,1.2980182]
[1644562942747,42.06699091,104.99,104.98,1.2980182]
[1644562942948,56.36629091,104.99,104.98,1.2980182]
[1644562943648,61.12729091,104.99,104.95,0.024]
[1644562943848,4.763,104.98,104.94,38.3214]
[1644562944050,0.97971305,104.97,104.94,0.024]
[1644562944247,0.97971305,104.97,104.91,24.7456]
[1644562945149,4.764,104.98,104.91,24.7456]
[1644562945348,4.764,104.98,104.92,0.024]
[1644562945749,14.3022,104.97,104.92,14.3263]
[1644562946151,48.70808183,104.97,104.92,14.3263]
[1644562947252,14.3011,104.98,104.92,14.5763]
[1644562947451,23.5474,104.99,104.93,0.024]
[1644562947651,23.5474,104.99,104.94,14.299]
[1644562948853,2.69139754,105.04,104.96,57.38]
[1644562949056,24.89335219,105.09,104.96,57.38]
[1644562949057,2.69944791,105.09,104.99,59.76366791]
[1644562949354,51.65779631,105.14,105.0,71.28]
[1644562949557,2.69837387,105.13,105.01,46.8543]
[1644562949754,28.09233448,105.12,105.02,53.44732404]
[1644562949953,28.09233448,105.12,105.02,136.14836877]
[1644562950155,28.09233448,105.12,105.03,19.90908266]
[1644562950356,28.09233448,105.12,105.05,46.21860794]
[1644562950555,28.09233448,105.12,105.05,54.14660794]
[1644562950756,28.09233448,105.12,105.05,62.78027585]
[1644562950958,28.09233448,105.12,105.05,76.0054948]
[1644562951156,28.09233448,105.12,105.05,70.0054948]
[1644562951356,4.758,105.13,105.05,76.0054948]
[1644562951555,4.758,105.13,105.06,14.2831]
[1644562951756,4.757,105.16,105.06,14.2831]
[1644562951956,4.757,105.16,105.06,27.50831895]
[1644562952456,28.33032428,105.15,105.07,43.36382095]
[1644562952657,8.65787974,105.13,105.07,57.64572095]
[1644562952856,4.757,105.12,105.07,57.64572095]
[1644562953060,4.757,105.12,105.07,14.2819]
[1644562953258,4.757,105.12,105.07,20.2819]
[1644562953559,4.757,105.12,105.07,14.2819]
[1644562953765,4.757,105.12,105.07,20.2819]
[1644562953968,4.757,105.12,105.07,16.66556791]
[1644562954167,28.33032428,105.11,105.07,16.66556791]
[1644562954369,4.757,105.12,105.07,16.66556791]
[1644562954370,4.757,105.14,105.07,20.2819]
[1644562954569,4.757,105.14,105.07,14.2819]
[1644562954870,4.757,105.14,105.07,20.2819]
[1644562955070,4.757,105.14,105.07,14.2819]
[1644562955270,4.757,105.14,105.07,20.2819]
[1644562955469,33.56415975,105.13,105.07,14.2819]
[1644562955670,4.757,105.12,105.07,20.2819]
[1644562955870,4.757,105.12,105.07,14.2819]
[1644562956070,4.757,105.12,105.07,20.2819]
[1644562956269,4.757,105.12,105.07,14.2819]
[1644562956469,4.757,105.12,105.07,20.2819]
[1644562956669,4.757,105.12,105.07,109.48882771]
[1644562956891,47.7899,105.17,105.07,103.73882771]
[1644562956892,4.757,105.14,105.07,103.73882771]
[1644562957070,47.7899,105.17,105.07,175.25028013]
[1644562957269,4.756,105.16,105.07,175.25028013]
[1644562957674,30.12504415,105.15,105.07,175.25028013]
[1644562957870,30.12504415,105.15,105.1,14.2763]
[1644562958370,47.7899,105.17,105.1,14.2763]
[1644562958571,4.755,105.16,105.1,27.50123006]
[1644562959271,36.68955501,105.15,105.1,27.50123006]
[1644562960372,36.68955501,105.15,105.1,14.2763]
[1644562960572,36.68955501,105.15,105.09,4.756]
[1644562961475,4.756,105.14,105.09,4.756]
[1644562961676,4.756,105.14,105.05,2.38366791]
[1644562961875,12.061,105.14,105.01,63.2582]
[1644562962075,45.9508,105.13,105.01,63.2582]
[1644562962273,4.758,105.12,105.02,34.67006615]
[1644562962473,4.758,105.12,105.02,37.05373406]
[1644562962685,4.758,105.12,105.04,41.88325763]
[1644562962876,50.7088,105.13,105.04,52.64125763]
[1644562963076,50.7088,105.13,105.05,2.38366791]
[1644562963275,50.7088,105.13,105.06,46.05776941]
[1644562964775,50.7088,105.13,105.06,60.33976941]
[1644562965677,50.7088,105.13,105.06,14.282]
[1644562965877,64.9925,105.13,105.05,16.66736791]
[1644562966080,64.9925,105.13,105.03,18.657]
[1644562966280,64.9925,105.13,105.03,18.907]
[1644562966480,64.9925,105.13,105.03,27.29066791]
[1644562966680,64.9925,105.13,105.04,41.06497914]
[1644562966882,60.2345,105.13,105.04,47.06497914]
[1644562967085,60.2345,105.13,105.04,49.44864705]
[1644562967788,60.2345,105.13,105.04,63.98354705]
[1644562967987,45.9508,105.13,105.04,77.88354705]
[1644562968186,45.9508,105.13,105.05,4.758]
[1644562968387,4.758,105.14,105.06,35.52893774]
[1644562968587,4.758,105.14,105.06,37.91260565]
[1644562968789,4.758,105.14,105.06,43.91260565]
[1644562969189,4.758,105.14,105.07,2.38366791]
[1644562969389,4.758,105.14,105.08,40.19219131]
[1644562969789,4.758,105.14,105.07,7.13966791]
[1644562969991,4.758,105.14,105.07,4.756]
[1644562970694,4.758,105.14,105.07,19.0367]
[1644562970993,19.0399,105.14,105.07,19.0367]
[1644562972111,19.0399,105.14,105.07,59.05999821]
[1644562972311,4.758,105.14,105.07,59.05999821]
[1644562972519,4.758,105.14,105.07,61.44366612]
[1644562972712,50.96995501,105.15,105.07,54.30399821]
[1644562974814,14.2804,105.15,105.08,4.756]
[1644562975016,4.757,105.16,105.08,41.0061]
[1644562975215,4.757,105.16,105.09,2.38366791]
[1644562975713,26.12172041,105.15,105.09,51.73695432]
[1644562975915,26.12172041,105.15,105.08,18.656]
[1644562976214,26.12172041,105.15,105.08,24.656]
[1644562976415,26.12172041,105.15,105.08,21.28966791]
[1644562976614,26.12172041,105.15,105.08,27.03966791]
[1644562976813,26.12172041,105.15,105.1,14.2764]
[1644562977013,4.756,105.14,105.08,13.9]
[1644562978017,10.86648361,105.13,105.08,13.9]
[1644562978416,10.86648361,105.13,105.08,28.1788]
[1644562983622,10.86648361,105.13,105.07,23.0712]
[1644562983823,4.757,105.12,105.07,23.0712]
[1644562984021,4.757,105.12,105.06,19.0388]
[1644562984022,4.757,105.12,105.06,14.2818]
[1644562984629,26.12172041,105.11,105.04,18.657]
[1644562984827,4.758,105.1,105.03,13.9]
[1644562985027,10.86648361,105.09,105.03,13.9]
[1644562986030,10.86648361,105.09,105.03,19.9]
[1644562986228,10.86648361,105.09,105.03,13.9]
[1644562986631,10.86648361,105.09,105.03,16.28366791]
[1644562986829,10.86648361,105.09,105.03,30.56966791]
[1644562989132,29.91248361,105.09,105.03,28.186]
[1644562989332,29.91248361,105.09,105.03,14.286]
[1644562990735,29.91248361,105.09,105.02,14.2886]
[1644562991133,29.91248361,105.09,105.02,57.0355848]
[1644562991635,29.91248361,105.09,105.02,14.2886]
[1644562991835,25.15348361,105.09,105.02,14.2886]
[1644562993240,25.15348361,105.09,105.01,19.0489]
[1644562993540,14.2914,105.06,104.99,24.0927]
[1644562993739,40.41312041,105.06,104.99,60.5858416]
[1644562994139,40.41312041,105.06,105.0,2.38366791]
[1644562994440,40.41312041,105.06,105.0,7.14366791]
[1644562994640,14.2914,105.06,105.01,50.32140021]
[1644562996044,14.2914,105.06,105.01,14.2901]
[1644562998165,8.92553138,105.05,105.01,14.2901]
[1644563000771,8.92553138,105.05,105.0,14.2915]
[1644563000973,23.21773138,105.05,105.0,14.2915]
[1644563003370,23.21773138,105.05,104.99,14.2929]
[1644563005071,14.2908,105.06,105.0,47.29863111]
[1644563005273,14.2908,105.06,105.01,14.2902]
[1644563006179,44.99088768,105.06,105.01,14.2902]
[1644563008178,14.2908,105.06,105.01,14.2902]
[1644563009380,14.2908,105.06,105.01,61.82871413]
[1644563010482,14.2908,105.06,105.01,14.2902]
[1644563012484,9.21879015,105.06,105.01,14.2902]
[1644563015588,9.21879015,105.06,105.02,2.38366791]
[1644563015990,9.21879015,105.06,105.01,14.2902]
[1644563017787,4.76,105.05,105.0,4.76]
[1644563018188,15.64186794,105.04,104.99,0.024]
[1644563018389,1.34596794,105.03,104.97,0.024]
[1644563018789,1.34596794,105.03,104.97,41.70012411]
[1644563019591,6.10696794,105.04,104.97,41.70012411]
[1644563019792,14.2971,105.02,104.98,0.024]
[1644563019991,14.2971,105.02,104.97,55.99592411]
[1644563020391,14.2971,105.02,104.97,41.70012411]
[1644563021190,19.0581,105.02,104.97,41.70012411]
[1644563022090,14.2971,105.02,104.97,41.70012411]
[1644563022991,14.2971,105.02,104.97,55.99602411]
[1644563028799,49.00276794,105.04,104.97,72.75869202]
[1644563028800,1.34596794,105.04,104.97,72.75869202]
[1644563029000,24.41426794,105.05,105.0,14.2922]
[1644563029301,23.0683,105.05,105.0,25.5902]
[1644563029499,6.10696794,105.07,105.0,41.87386791]
[1644563029698,29.17526794,105.07,105.01,35.78060619]
[1644563029898,43.46426794,105.07,105.01,35.78060619]
[1644563030699,43.46426794,105.07,105.02,14.289]
[1644563032423,42.1183,105.07,105.02,14.289]
[1644563033022,38.70326794,105.07,105.02,14.289]
[1644563033423,37.3573,105.07,105.02,14.289]
[1644563033823,38.70326794,105.07,105.02,14.289]
[1644563034023,43.46226794,105.07,105.02,14.289]